bitfinex-derivatives/quotes_BTCF0:USTF0_20241203
["timestamp","ask_amount","ask_price","bid_price","bid_amount"]
[1733193017595,0.001,95908.0,95907.0,0.0325]
[1733193019097,0.001,95908.0,95907.0,0.084626]
[1733193019397,0.002,95908.0,95907.0,0.084626]
[1733193020003,0.002,95908.0,95907.0,0.085626]
[1733193020299,0.002,95908.0,95907.0,0.053126]
[1733193021900,0.002,95908.0,95907.0,0.413926]
[1733193022600,0.002,95908.0,95907.0,0.053126]
[1733193027300,0.002,95908.0,95907.0,0.001]
[1733193029101,0.0343,95908.0,95907.0,0.001]
[1733193029402,0.18994895,95908.0,95907.0,0.001]
[1733193030204,0.29421608,95908.0,95886.0,0.05370134]
[1733193030507,0.052132,95895.0,95887.0,0.052136]
[1733193031207,0.3608,95896.0,95892.0,0.052133]
[1733193033107,0.3628,95896.0,95892.0,0.052133]
[1733193033306,0.3638,95896.0,95892.0,0.052133]
[1733193033506,0.3618,95896.0,95892.0,0.052133]
[1733193033705,0.3648,95896.0,95892.0,0.053133]
[1733193034107,0.004,95896.0,95892.0,0.13272]
[1733193034309,0.004,95896.0,95895.0,0.052132]
[1733193035703,0.5026,95910.0,95909.0,0.052124]
[1733193035912,0.5,95910.0,95909.0,0.052124]
[1733193037016,0.502,95910.0,95909.0,0.053124]
[1733193037410,0.503,95910.0,95909.0,0.053124]
[1733193038912,0.5,95910.0,95909.0,0.052124]
[1733193039116,0.5,95910.0,95909.0,0.053124]
[1733193039117,0.503,95910.0,95909.0,0.053124]
[1733193051029,0.0643,95927.0,95926.0,0.052115]
[1733193051230,0.13168,95939.0,95917.0,0.05212]
[1733193051231,0.0308,95938.0,95920.0,0.49248]
[1733193051417,0.0308,95938.0,95936.0,0.05211]
[1733193051620,0.18695894,95938.0,95936.0,0.05211]
[1733193052529,0.18895894,95938.0,95936.0,0.05211]
[1733193053026,0.18995894,95938.0,95936.0,0.05411]
[1733193054518,0.002,95938.0,95937.0,0.3608]
[1733193054826,0.13168,95970.0,95954.0,0.0521]
[1733193055022,0.13168,95970.0,95955.0,0.3608]
[1733193055023,0.00067,95956.0,95955.0,0.3608]
[1733193056229,0.00067,95956.0,95955.0,0.412899]
[1733193056427,0.00067,95956.0,95955.0,0.4324724]
[1733193056628,0.00067,95956.0,95955.0,0.412899]
[1733193057424,0.00067,95956.0,95955.0,0.413899]
[1733193057831,0.00067,95956.0,95955.0,0.414899]
[1733193059222,0.36147,95956.0,95955.0,0.002]
[1733193059419,0.36147,95956.0,95934.0,0.3608]
[1733193059420,0.51688881,95956.0,95938.0,0.13164]
[1733193059622,0.052105,95945.0,95944.0,0.052105]
[1733193059826,0.10439155,95950.0,95938.0,0.13164]
[1733193060135,0.10439155,95950.0,95941.0,0.052107]
[1733193060136,0.052106,95943.0,95941.0,0.052107]
[1733193060628,0.0643,95944.0,95935.0,0.05211]
[1733193060629,0.052109,95937.0,95935.0,0.05211]
[1733193061033,0.36136001,95942.0,95917.0,0.0632]
[1733193061230,0.36136001,95942.0,95926.0,0.052115]
[1733193061231,0.052115,95927.0,95926.0,0.052115]
[1733193061829,0.3608,95942.0,95928.0,0.052114]
[1733193062029,0.0026,95954.0,95953.0,0.052101]
[1733193062228,0.0026,95954.0,95936.0,0.052109]
[1733193062229,0.03177,95956.0,95955.0,0.052099]
[1733193062627,0.18779751,95956.0,95955.0,0.052099]
[1733193063737,0.15669751,95956.0,95955.0,0.052099]
[1733193064432,0.15669751,95956.0,95955.0,0.053099]
[1733193064636,0.15769751,95956.0,95955.0,0.054099]
[1733193065231,0.00167,95956.0,95955.0,0.185739]
[1733193065432,0.00067,95956.0,95955.0,0.545539]
[1733193065632,0.00167,95956.0,95955.0,0.546539]
[1733193067141,0.001,95956.0,95955.0,0.546539]
[1733193068136,0.052091,95970.0,95969.0,0.052091]
[1733193069432,0.053091,95970.0,95969.0,0.001]
[1733193069733,0.053091,95970.0,95969.0,0.053092]
[1733193070538,0.053091,95970.0,95969.0,0.054092]
[1733193070933,0.052091,95970.0,95969.0,0.054092]
[1733193074138,0.052091,95970.0,95969.0,0.002]
[1733193075345,0.052091,95970.0,95969.0,0.054092]
[1733193075734,0.052091,95970.0,95969.0,0.002]
[1733193075735,0.20925365,95970.0,95969.0,0.002]
[1733193075942,0.24075365,95970.0,95969.0,0.002]
[1733193076136,0.27365365,95970.0,95969.0,0.002]
[1733193081548,0.27365365,95970.0,95969.0,0.001]
[1733193081740,0.27365365,95970.0,95969.0,0.002]
[1733193082844,0.27365365,95970.0,95969.0,0.054092]
[1733193083345,0.15716265,95970.0,95969.0,0.054092]
[1733193083547,0.3608,95971.0,95970.0,0.052091]
[1733193084538,0.41295,95979.0,95969.0,0.3628]
[1733193084741,0.05215,95979.0,95978.0,0.052087]
[1733193087055,0.052085,95982.0,95981.0,0.052085]
[1733193087243,0.052086,95979.0,95978.0,0.001]
[1733193087551,0.052086,95979.0,95978.0,0.002]
[1733193088149,0.052086,95979.0,95978.0,0.001]
[1733193089053,0.052086,95979.0,95978.0,0.002]
[1733193092349,0.20817089,95979.0,95978.0,0.002]
[1733193094160,0.22739726,95979.0,95978.0,0.002]
[1733193096560,0.22739726,95979.0,95978.0,0.001]
[1733193096859,0.22739726,95979.0,95978.0,0.002]
[1733193097751,0.22739726,95979.0,95978.0,0.001]
[1733193098155,0.20817089,95979.0,95978.0,0.002]
[1733193098754,0.052086,95979.0,95978.0,0.002]
[1733193100460,0.052086,95979.0,95978.0,0.001]
[1733193100763,0.052086,95979.0,95978.0,0.002]
[1733193101056,0.052086,95979.0,95978.0,0.001]
[1733193107566,0.052086,95979.0,95978.0,0.053087]
[1733193108864,0.052084,95984.0,95983.0,0.052084]
[1733193109261,0.20878908,95984.0,95983.0,0.052084]
[1733193109563,0.052083,95985.0,95978.0,0.001]
[1733193109758,0.052083,95985.0,95984.0,0.052084]
[1733193110860,0.37991009,95987.0,95984.0,0.001]
[1733193111163,0.052083,95985.0,95984.0,0.001]
[1733193111364,0.37991009,95987.0,95984.0,0.001]
[1733193111566,0.37991009,95987.0,95986.0,0.052083]
[1733193111766,0.43199209,95987.0,95986.0,0.052083]
[1733193112855,0.43199209,95987.0,95984.0,0.002]
[1733193112856,0.37991009,95987.0,95984.0,0.001]
[1733193113062,0.052083,95985.0,95984.0,0.002]
[1733193113457,0.052083,95985.0,95984.0,0.001]
[1733193113662,0.052083,95985.0,95983.0,0.07135157]
[1733193113863,0.052084,95984.0,95983.0,0.052084]
[1733193115473,0.37991009,95987.0,95981.0,0.0194334]
[1733193115661,0.37991009,95987.0,95985.0,0.052083]
[1733193116865,0.37991009,95987.0,95985.0,0.054083]
[1733193117472,0.3608,95987.0,95985.0,0.054083]
[1733193121382,0.052079,95994.0,95992.0,0.052079]
[1733193121576,0.052077,95997.0,95992.0,0.052079]
[1733193121877,0.15680881,95993.0,95991.0,0.052079]
[1733193122065,0.20812323,95997.0,95985.0,0.002]
[1733193122271,0.052077,95997.0,95985.0,0.002]
[1733193122473,0.3608,95998.0,95991.0,0.05208]
[1733193122474,0.20812323,95996.0,95991.0,0.05208]
[1733193122674,0.052078,95995.0,95992.0,0.001]
[1733193123074,0.15541213,95994.0,95992.0,0.001]
[1733193123277,0.15541213,95994.0,95992.0,0.002]
[1733193123576,0.15541213,95994.0,95993.0,0.052079]
[1733193123777,0.3608,95998.0,95997.0,0.052077]
[1733193124179,0.51657637,95998.0,95997.0,0.052077]
[1733193126381,0.51657637,95998.0,95997.0,0.053077]
[1733193126985,0.51657637,95998.0,95997.0,0.07331929]
[1733193127886,0.3608,95998.0,95997.0,0.07331929]
[1733193128981,0.60056001,96000.0,95999.0,0.052076]
[1733193129181,0.6,96000.0,95999.0,0.052076]
[1733193130074,0.6,96000.0,95999.0,0.053076]
[1733193130484,0.6,96000.0,95999.0,0.054076]
[1733193132278,0.6,96000.0,95999.0,0.002]
[1733193136986,0.9608,96000.0,95999.0,0.002]
[1733193137494,1.11694322,96000.0,95999.0,0.002]
[1733193137791,1.24846322,96000.0,95980.0,0.13152]
[1733193138100,0.052085,95981.0,95979.0,0.00156262]
[1733193139292,0.51729188,95980.0,95979.0,0.00156262]
[1733193139496,0.57959188,95980.0,95979.0,0.00156262]
[1733193140995,0.74211188,95980.0,95979.0,0.00156262]
[1733193141294,0.74211188,95980.0,95967.0,0.01907648]
[1733193141295,0.052092,95968.0,95967.0,0.01907648]
[1733193141492,0.544412,95968.0,95967.0,0.01907648]
[1733193141691,0.70165617,95968.0,95967.0,0.00011465]
[1733193142999,0.70265617,95968.0,95967.0,0.00011465]
[1733193143585,0.7242563,95968.0,95967.0,0.00011465]
[1733193144692,0.70465617,95968.0,95967.0,0.00011465]
[1733193145095,0.70465617,95968.0,95953.0,0.0026]
[1733193145096,0.052098,95959.0,95953.0,0.0026]
[1733193145289,0.052098,95959.0,95948.0,0.02190316]
[1733193146102,9.97e-05,95958.0,95948.0,0.02190316]
[1733193146296,9.97e-05,95958.0,95948.0,0.01930316]
[1733193146497,9.97e-05,95958.0,95950.0,0.052102]
[1733193146697,0.15637599,95958.0,95946.0,0.13156]
[1733193146902,0.21947599,95958.0,95946.0,0.13156]
[1733193147397,0.22047599,95958.0,95945.0,0.3608]
[1733193147899,0.22047599,95958.0,95946.0,0.0197578]
[1733193148300,0.25367599,95958.0,95946.0,0.0197578]
[1733193150000,0.25367599,95958.0,95943.0,0.13416]
[1733193150001,0.25367599,95958.0,95943.0,0.0026]
[1733193150203,0.412902,95950.0,95943.0,0.0026]
[1733193150499,0.56878364,95950.0,95935.0,0.13416]
[1733193150904,0.56878364,95950.0,95937.0,0.052109]
[1733193151298,0.56878364,95950.0,95949.0,0.0055633]
[1733193151492,0.51668164,95950.0,95949.0,0.0055633]
[1733193151701,0.3608,95950.0,95949.0,0.0055633]
[1733193151895,0.3628,95950.0,95949.0,0.0025633]
[1733193152097,0.3638,95950.0,95949.0,0.0015633]
[1733193156116,0.003,95950.0,95949.0,0.0015633]
[1733193156306,0.003,95950.0,95949.0,0.0640633]
[1733193160220,0.003,95950.0,95949.0,0.0015633]
[1733193161013,0.0347,95950.0,95949.0,0.0015633]
[1733193161721,0.052109,95938.0,95930.0,0.0105]
[1733193162024,0.052109,95938.0,95935.0,0.05211]
[1733193163022,0.052109,95938.0,95935.0,0.05311]
[1733193164313,0.3608,95943.0,95935.0,0.05311]
[1733193164517,0.052109,95937.0,95935.0,0.05411]
[1733193166129,0.052109,95937.0,95935.0,0.05311]
[1733193166427,0.412906,95943.0,95940.0,0.052107]
[1733193166725,0.052107,95942.0,95940.0,0.052107]
[1733193167612,0.052108,95940.0,95935.0,0.002]
[1733193167821,0.052108,95940.0,95935.0,0.05411]
[1733193168023,0.3618,95943.0,95935.0,0.05311]
[1733193168219,0.3618,95943.0,95935.0,0.001]
[1733193168220,0.05211,95937.0,95935.0,0.001]
[1733193169726,0.001,95942.0,95930.0,0.183673]
[1733193170027,0.052112,95933.0,95930.0,0.183673]
[1733193170724,0.3608,95943.0,95929.0,0.01930856]
[1733193170725,0.052113,95930.0,95929.0,0.15086856]
[1733193170925,0.052113,95930.0,95929.0,0.01930856]
[1733193171623,0.0026,95941.0,95929.0,0.01930856]
[1733193171823,0.3608,95943.0,95929.0,0.01930856]
[1733193171824,0.05211,95935.0,95930.0,0.052113]
[1733193172021,0.3608,95943.0,95930.0,0.052113]
[1733193172229,0.05211,95936.0,95931.0,0.052112]
[1733193172534,0.052111,95933.0,95931.0,0.052112]
[1733193173316,0.052111,95933.0,95931.0,0.055112]
[1733193174027,0.052111,95933.0,95932.0,0.052112]
[1733193174622,0.052112,95932.0,95931.0,0.003]
[1733193175926,0.003,95933.0,95929.0,7.602e-05]
[1733193176131,0.052113,95930.0,95929.0,7.602e-05]
[1733193177236,0.060113,95930.0,95929.0,0.00107602]
[1733193177731,0.063113,95930.0,95929.0,0.00107602]
[1733193184924,0.063113,95930.0,95929.0,0.05319002]
[1733193185637,0.011,95930.0,95929.0,0.05319002]
[1733193185837,0.011,95930.0,95929.0,0.41399002]
[1733193186135,0.3608,95953.0,95940.0,0.052108]
[1733193186435,0.0026,95952.0,95936.0,0.1316]
[1733193186640,0.052103,95949.0,95947.0,0.049503]
[1733193186844,0.052103,95948.0,95947.0,0.049503]
[1733193187031,0.20816586,95948.0,95947.0,0.049503]
[1733193187230,0.052103,95948.0,95947.0,0.049503]
[1733193187737,0.20916221,95948.0,95947.0,0.049503]
[1733193187931,0.21716221,95948.0,95947.0,0.050503]
[1733193188133,0.21716221,95948.0,95947.0,0.001]
[1733193189646,0.052105,95945.0,95942.0,0.052106]
[1733193189838,0.3608,95943.0,95942.0,0.052106]
[1733193190736,0.3608,95953.0,95937.0,0.0319]
[1733193190737,0.052102,95950.0,95937.0,0.0319]
[1733193190931,0.3608,95953.0,95952.0,0.052101]
[1733193191335,0.56873937,95953.0,95952.0,0.052101]
[1733193192240,0.56873937,95953.0,95943.0,0.3608]
[1733193192443,0.51663837,95953.0,95943.0,0.3608]
[1733193192633,0.052105,95945.0,95941.0,0.052107]
[1733193192835,0.052105,95945.0,95942.0,0.001]
[1733193193037,0.3608,95953.0,95942.0,0.001]
[1733193193332,0.3608,95953.0,95940.0,0.1316]
[1733193193333,0.052103,95948.0,95945.0,0.052105]
[1733193193536,0.052104,95947.0,95945.0,0.052105]
[1733193193843,0.052104,95947.0,95936.0,0.01964097]
[1733193194043,0.052104,95947.0,95946.0,0.052104]
[1733193194550,0.3608,95953.0,95940.0,0.052107]
[1733193194741,0.3608,95953.0,95937.0,0.0319]
[1733193194742,0.0319,95952.0,95941.0,0.052107]
[1733193194934,0.052105,95946.0,95943.0,0.052106]
[1733193195541,0.052105,95946.0,95945.0,0.001]
[1733193196041,0.052105,95946.0,95944.0,0.052105]
[1733193197032,0.3608,95945.0,95938.0,0.052108]
[1733193197338,0.3608,95945.0,95939.0,0.052108]
[1733193197339,0.052107,95942.0,95939.0,0.052108]
[1733193197739,0.052107,95942.0,95940.0,0.052108]
[1733193198246,0.052107,95941.0,95940.0,0.052108]
[1733193199644,0.412905,95945.0,95937.0,0.0319]
[1733193199945,0.3608,95945.0,95944.0,0.052105]
[1733193200134,0.412905,95945.0,95944.0,0.052105]
[1733193201544,0.052105,95945.0,95944.0,0.052105]
[1733193202145,0.3608,95955.0,95939.0,0.3608]
[1733193202350,0.3608,95955.0,95952.0,0.052101]
[1733193202559,0.15733399,95951.0,95950.0,0.052102]
[1733193202849,0.3608,95955.0,95947.0,0.0304]
[1733193203350,0.15695872,95954.0,95953.0,0.0521]
[1733193203551,0.15695872,95954.0,95947.0,0.0304]
[1733193203552,0.3608,95963.0,95957.0,0.052098]
[1733193204053,0.412895,95963.0,95957.0,0.052098]
[1733193204751,0.3608,95963.0,95957.0,0.052098]
[1733193204945,0.052097,95959.0,95957.0,0.052098]
[1733193207155,0.3608,95963.0,95957.0,0.052098]
[1733193208344,0.052097,95959.0,95957.0,0.052098]
[1733193212546,0.052101,95952.0,95951.0,0.052101]
[1733193217157,0.3608,95954.0,95953.0,0.052101]
[1733193217456,0.51800937,95954.0,95953.0,0.052101]
[1733193219055,0.15720937,95954.0,95953.0,0.052101]
[1733193219463,0.3608,95955.0,95945.0,0.052105]
[1733193219762,0.3608,95955.0,95954.0,0.0521]
[1733193220159,0.51705524,95955.0,95954.0,0.0521]
[1733193224570,0.51705524,95955.0,95954.0,0.07135512]
[1733193227268,0.56915424,95955.0,95954.0,0.0521]
[1733193230776,0.052103,95950.0,95949.0,0.052103]
[1733193230977,0.052103,95950.0,95946.0,0.052104]
[1733193231177,0.052103,95950.0,95948.0,0.052103]
[1733193231474,0.36144,95955.0,95944.0,0.02221954]
[1733193231475,0.052105,95945.0,95944.0,0.02221954]
[1733193231776,0.052105,95945.0,95937.0,0.00416343]
[1733193231777,0.3608,95945.0,95937.0,0.00416343]
[1733193232077,0.052109,95938.0,95937.0,0.0026]
[1733193232273,0.052106,95943.0,95930.0,0.0026]
[1733193232481,0.13152,95944.0,95930.0,0.0026]
[1733193232482,0.412912,95931.0,95930.0,0.0026]
[1733193232778,0.052113,95930.0,95929.0,7.602e-05]
[1733193233274,0.052113,95930.0,95929.0,0.01944865]
[1733193233463,0.052113,95930.0,95929.0,7.602e-05]
[1733193233873,0.3608,95931.0,95930.0,0.052113]
[1733193234875,0.3618,95931.0,95930.0,0.052113]
[1733193236882,0.3628,95931.0,95930.0,0.052113]
[1733193237381,0.414912,95931.0,95930.0,0.052113]
[1733193237979,0.3628,95931.0,95930.0,0.052113]
[1733193239889,0.3628,95931.0,95929.0,7.602e-05]
[1733193240178,0.052113,95930.0,95929.0,7.602e-05]
[1733193242091,0.053113,95930.0,95929.0,7.602e-05]
[1733193242773,0.413913,95930.0,95929.0,7.602e-05]
[1733193242975,0.414913,95930.0,95929.0,7.602e-05]
[1733193243482,0.41500082,95930.0,95929.0,7.602e-05]
[1733193247479,0.36288782,95930.0,95929.0,0.05219002]
[1733193247885,0.00208782,95930.0,95929.0,0.05219002]
[1733193249595,0.00208782,95930.0,95929.0,0.07104662]
[1733193255483,0.04499562,95931.0,95930.0,0.052113]
[1733193255683,0.3608,95935.0,95934.0,0.052111]
[1733193256079,0.052113,95930.0,95929.0,0.07104562]
[1733193256384,0.052111,95933.0,95932.0,0.052112]
[1733193256581,0.3608,95935.0,95929.0,0.01893262]
[1733193256883,0.15621839,95933.0,95932.0,0.052112]
[1733193257092,0.3608,95935.0,95932.0,0.052112]
[1733193257482,0.15727726,95934.0,95932.0,0.052112]
[1733193257881,0.001,95933.0,95932.0,0.052112]
[1733193258282,0.21038826,95933.0,95932.0,0.052112]
[1733193258789,0.15727726,95933.0,95932.0,0.052112]
[1733193259288,0.15827421,95934.0,95929.0,7.602e-05]
[1733193259491,0.001,95934.0,95933.0,0.052111]
[1733193259991,0.15784408,95934.0,95933.0,0.052111]
[1733193260685,0.15784408,95934.0,95929.0,7.602e-05]
[1733193260991,0.052113,95930.0,95929.0,7.602e-05]
[1733193261890,0.34216419,95930.0,95929.0,7.602e-05]
[1733193262601,0.052116,95924.0,95923.0,0.0026]
[1733193262783,0.052121,95915.0,95914.0,0.0026]
[1733193262989,0.052121,95915.0,95909.0,0.05368773]
[1733193262990,0.412922,95915.0,95909.0,0.05368773]
[1733193263186,0.51626558,95915.0,95909.0,0.05368773]
[1733193263494,0.052122,95913.0,95909.0,0.05368773]
[1733193263795,0.15701606,95912.0,95909.0,0.05368773]
[1733193263994,0.20913906,95912.0,95909.0,0.05368773]
[1733193264196,0.052123,95912.0,95909.0,0.0766104]
[1733193264392,8.527e-05,95914.0,95909.0,0.0836104]
[1733193264602,0.052123,95911.0,95909.0,0.0836104]
[1733193264791,0.052123,95911.0,95909.0,0.0766104]
[1733193264991,0.052123,95911.0,95909.0,0.0836104]
[1733193266691,0.052123,95911.0,95909.0,0.0314864]
[1733193268399,0.052123,95911.0,95909.0,0.01256373]
[1733193270789,0.052123,95911.0,95909.0,0.06468773]
[1733193273500,0.052123,95911.0,95909.0,0.01256373]
[1733193276101,0.052124,95910.0,95909.0,0.01256373]
[1733193276688,8.527e-05,95914.0,95912.0,0.052123]
[1733193276898,0.3608,95933.0,95932.0,0.052112]
[1733193277200,0.51725137,95933.0,95932.0,0.052112]
[1733193277501,0.51725137,95933.0,95923.0,0.13552]
[1733193277799,0.56936237,95933.0,95931.0,0.052112]
[1733193278002,0.57036237,95933.0,95932.0,0.053112]
[1733193278392,0.51825137,95933.0,95932.0,0.053112]
[1733193279396,0.51925137,95933.0,95932.0,0.053112]
[1733193279612,0.51925137,95933.0,95932.0,0.052112]
[1733193280096,0.51825137,95933.0,95932.0,0.052112]
[1733193280407,0.57136237,95933.0,95932.0,0.001]
[1733193284011,0.57136237,95933.0,95932.0,0.053112]
[1733193285302,0.57136237,95933.0,95932.0,0.001]
[1733193291499,0.3628,95933.0,95932.0,0.053112]
[1733193293402,0.3628,95933.0,95932.0,0.07199123]
[1733193294005,0.002,95933.0,95932.0,0.07199123]
[1733193294211,0.05215,95952.0,95950.0,0.052102]
[1733193294414,0.3608,95953.0,95952.0,0.052101]
[1733193294625,0.3608,95956.0,95953.0,0.0521]
[1733193294808,0.3608,95956.0,95943.0,0.0026]
[1733193295008,0.052101,95953.0,95951.0,0.052102]
[1733193295416,0.15711637,95952.0,95951.0,0.052102]
[1733193295901,0.15711637,95952.0,95951.0,0.07108156]
[1733193296105,0.15711637,95952.0,95951.0,0.053102]
[1733193296509,0.15711637,95952.0,95951.0,0.054102]
[1733193297309,0.15711637,95952.0,95951.0,0.002]
[1733193298019,0.15711637,95952.0,95951.0,0.001]
[1733193298911,0.1560507,95954.0,95951.0,0.001]
[1733193299218,0.05215,95955.0,95951.0,0.001]
[1733193299710,0.15710265,95954.0,95951.0,0.001]
[1733193300717,0.20920265,95954.0,95951.0,0.001]
[1733193300917,0.052101,95952.0,95951.0,0.001]
[1733193301308,0.20921581,95952.0,95951.0,0.001]
[1733193302307,0.20921581,95952.0,95951.0,0.002]
[1733193302808,0.20921581,95952.0,95951.0,0.001]
[1733193303116,0.20921581,95952.0,95951.0,0.002]
[1733193304513,0.15711481,95952.0,95951.0,0.002]
[1733193304817,0.3608,95956.0,95951.0,0.002]
[1733193305120,0.3608,95956.0,95952.0,0.064]
[1733193305313,0.3608,95956.0,95953.0,0.13152]
[1733193305718,0.0521,95955.0,95953.0,0.13152]
[1733193306615,0.3608,95956.0,95951.0,0.002]
[1733193306824,0.052101,95952.0,95951.0,0.002]
[1733193307218,0.052101,95952.0,95951.0,0.001]
[1733193308424,0.052104,95947.0,95944.0,0.15080238]
[1733193308719,0.052105,95946.0,95944.0,0.13152]
[1733193313024,0.3608,95947.0,95938.0,0.13152]
[1733193313221,0.052106,95943.0,95938.0,0.13152]
[1733193314127,0.052107,95941.0,95938.0,0.13152]
[1733193314721,0.3608,95947.0,95938.0,0.13152]
[1733193314722,0.052108,95940.0,95938.0,0.13152]
[1733193315328,0.15567802,95946.0,95938.0,0.13152]
[1733193315518,0.032,95954.0,95938.0,0.13152]
[1733193315519,0.3608,95968.0,95944.0,0.052105]
[1733193315724,0.052101,95952.0,95949.0,0.052102]
[1733193316623,0.052102,95951.0,95949.0,0.052102]
[1733193317534,0.052102,95951.0,95949.0,0.07171291]
[1733193320823,0.052102,95951.0,95949.0,0.01961091]
[1733193321028,0.052103,95949.0,95948.0,0.13152]
[1733193322035,0.052103,95949.0,95948.0,0.15042301]
[1733193323226,0.052103,95949.0,95948.0,0.13152]
[1733193325340,0.052104,95947.0,95945.0,0.0190246]
[1733193325630,0.3608,95948.0,95941.0,0.185827]
[1733193325837,0.3608,95948.0,95941.0,0.2052123]
[1733193326026,0.052095,95963.0,95947.0,0.3608]
[1733193326227,0.3608,95968.0,95953.0,0.06852116]
[1733193326433,0.2075556,95962.0,95960.0,0.052097]
[1733193326636,0.052096,95962.0,95960.0,0.052097]
[1733193326834,0.15660272,95961.0,95960.0,0.052097]
[1733193328534,0.15660272,95961.0,95960.0,0.053097]
[1733193330037,0.15660272,95961.0,95960.0,0.001]
[1733193330246,0.3608,95968.0,95967.0,0.052093]
[1733193330535,0.479389,95975.0,95960.0,0.3618]
[1733193330536,0.06706001,95975.0,95960.0,0.3618]
[1733193330736,0.05209,95973.0,95969.0,0.052092]
[1733193331040,0.15688004,95972.0,95969.0,0.052092]
[1733193331444,0.0665,95975.0,95969.0,0.052092]
[1733193331445,0.052091,95971.0,95969.0,0.052092]
[1733193332340,0.052091,95971.0,95969.0,0.07214159]
[1733193333146,0.052091,95971.0,95969.0,0.053092]
[1733193333335,0.052091,95971.0,95969.0,0.001]
[1733193333739,0.3608,95977.0,95976.0,0.052088]
[1733193333941,0.3608,95996.0,95995.0,0.052078]
[1733193334136,0.60056001,96000.0,95993.0,0.13372]
[1733193334340,0.60056001,96000.0,95998.0,0.052076]
[1733193336145,0.60056001,96000.0,95998.0,0.053076]
[1733193336736,0.60056001,96000.0,95998.0,0.07249146]
[1733193337033,0.60056001,96000.0,95998.0,0.07349146]
[1733193337846,0.60056001,96000.0,95998.0,0.07249146]
[1733193338541,0.60056001,96000.0,95998.0,0.07149146]
[1733193338744,0.60056001,96000.0,95998.0,0.07249146]
[1733193338943,0.60056001,96000.0,95998.0,0.053076]
[1733193339142,0.052966,95999.0,95998.0,0.053076]
[1733193339345,0.00089,95999.0,95998.0,0.053076]
[1733193341545,0.29798471,96000.0,95998.0,0.053076]
[1733193341745,0.2974247,96000.0,95998.0,0.053076]
[1733193341950,0.2974247,96000.0,95999.0,0.0309]
[1733193343448,0.2974247,96000.0,95999.0,0.16454]
[1733193344041,0.2974247,96000.0,95998.0,0.053076]
[1733193344339,0.2974247,96000.0,95999.0,0.13364]
[1733193344955,0.2974247,96000.0,95999.0,0.13464]
[1733193346047,0.2974247,96000.0,95999.0,0.001]
[1733193348253,0.2974247,96000.0,95999.0,0.13464]
[1733193349055,0.3494997,96000.0,95999.0,0.13464]
[1733193349349,0.3494997,96000.0,95999.0,0.053076]
[1733193353050,0.3494997,96000.0,95999.0,0.001]
[1733193354858,0.2974247,96000.0,95998.0,0.13308]
[1733193355056,0.2974247,96000.0,95999.0,0.001]
[1733193356164,0.2974247,96000.0,95991.0,0.01934413]
[1733193356348,0.2974247,96000.0,95992.0,0.13304]
[1733193356349,0.3608,95998.0,95992.0,0.13304]
[1733193356553,0.052078,95996.0,95992.0,0.13304]
[1733193356951,0.3494997,96000.0,95992.0,0.13304]
[1733193357359,0.052076,95998.0,95992.0,0.13304]
[1733193357555,0.052077,95997.0,95992.0,0.13304]
[1733193357755,0.052078,95995.0,95992.0,0.13304]
[1733193358063,0.3608,95998.0,95992.0,0.13304]
[1733193358257,0.052078,95994.0,95992.0,0.13304]
[1733193358461,0.3608,95998.0,95992.0,0.13304]
[1733193358760,0.052079,95993.0,95992.0,0.13304]
[1733193358960,0.052079,95993.0,95992.0,0.13404]
[1733193360651,0.052079,95993.0,95992.0,0.001]
[1733193361059,0.052079,95992.0,95991.0,0.13304]
[1733193361662,0.052082,95988.0,95987.0,0.02165728]
[1733193361866,0.052082,95988.0,95987.0,0.13304]
[1733193362366,0.052085,95982.0,95981.0,0.0026]
[1733193362552,0.052088,95977.0,95976.0,0.0032]
[1733193362864,0.052089,95974.0,95973.0,0.13304]
[1733193363458,0.052089,95974.0,95970.0,0.00010538]
[1733193363459,0.052091,95971.0,95970.0,0.01976221]
[1733193363654,0.052091,95971.0,95970.0,0.00010538]
[1733193364162,0.052091,95971.0,95970.0,0.01961182]
[1733193365868,0.052091,95971.0,95970.0,0.02261182]
[1733193366059,0.052091,95971.0,95970.0,0.00510538]
[1733193368062,0.052089,95975.0,95971.0,0.052091]
[1733193368269,0.052091,95972.0,95970.0,0.00510538]
[1733193369360,0.052091,95972.0,95971.0,0.001]
[1733193370161,0.052091,95972.0,95970.0,0.00510538]
[1733193371870,0.052091,95972.0,95970.0,0.00210538]
[1733193372074,0.052091,95972.0,95971.0,0.003]
[1733193372573,0.052091,95972.0,95971.0,0.001]
[1733193373161,0.052091,95972.0,95971.0,0.004]
[1733193373574,0.3608,95977.0,95974.0,0.052089]
[1733193374267,0.3608,95977.0,95975.0,0.052088]
[1733193375171,0.3608,95977.0,95975.0,0.185168]
[1733193375374,0.3608,95977.0,95975.0,0.186168]
[1733193375676,0.3608,95977.0,95975.0,0.13408]
[1733193375868,0.052088,95976.0,95975.0,0.15370845]
[1733193376869,0.3608,95977.0,95975.0,0.15370845]
[1733193376870,0.3608,95977.0,95976.0,0.052088]
[1733193377262,0.13308,95993.0,95979.0,0.052086]
[1733193377263,0.3608,95986.0,95979.0,0.052086]
[1733193377470,0.052084,95984.0,95979.0,0.0026]
[1733193377665,0.20822819,95984.0,95981.0,0.052085]
[1733193377868,0.052084,95984.0,95981.0,0.052085]
[1733193378173,0.15614419,95983.0,95981.0,0.052085]
[1733193378377,0.052086,95981.0,95979.0,0.0026]
[1733193378574,0.052086,95979.0,95977.0,0.052087]
[1733193380380,0.052088,95977.0,95975.0,0.15270845]
[1733193381174,0.052088,95977.0,95975.0,0.01962845]
[1733193381370,0.052091,95971.0,95970.0,0.00010538]
[1733193381579,0.052091,95971.0,95970.0,0.01893503]
[1733193381876,0.052091,95971.0,95970.0,0.00010538]